Cogmind - Beta 16 --- EXPLORER MODE // 2025.11.11 @ 11:11:54 Player: K.K.Y. Result: Destroyed by PM-QBC(R) with Subdweller Machine Gun Performance ------------- Evolutions (0) 0 Regions Visited (2) 400 Robots Destroyed (12) 60 Value Destroyed (296) 296 Prototype IDs (2) 40 Alien Tech Used (0) 0 Bonus (0) 0 TOTAL SCORE: 796 Bonus ------- None Cogmind --------- Core Integrity 0/250 Matter 300/300 Energy 100/100 System Corruption 0% Temperature Cool (0) Movement Core (250) Ox4 Location -10/Subcaves Parts ------- > --- POWER (1) -------- (None) > --- PROPULSION (3) --- (None) > --- UTILITY (2) ------ Medium Storage Unit Terrain Scanner > --- WEAPON (2) ------- Mining Claw > --- INVENTORY (10) --- Subdweller Power Source Subdweller Optics Sensor Array Seismic Detector Scrap Shield Tractor Beam EM Pulse Gun Welding Torch Peak State ------------ > --- POWER ------------ Ion Engine > --- PROPULSION ------- Aluminum Leg Aluminum Leg Aluminum Leg > --- UTILITY ---------- Medium Storage Unit Terrain Scanner > --- WEAPON ----------- EM Pulse Gun Riot Gun > --- INVENTORY -------- Subdweller Power Source Hover Unit Hover Unit Sensor Array Seismic Detector Tractor Beam Mining Laser Welding Torch Mining Claw Mining Claw [Rating: 11] Favorites ----------- Power Ion Engine Engine Ion Engine Propulsion Aluminum Leg Leg Aluminum Leg Utility Terrain Scanner Device Terrain Scanner Storage Medium Storage Unit Weapon EM Pulse Gun Energy Gun EM Pulse Gun Special Weapon Welding Torch Slashing Weapon Mining Claw Build | -11 -10 -10 ------- Run | Yrd Mat Sub Slots Evolved 1 | . 1 . Power . | . . . Propulsion 1 | . 1 . Utility . | . . . Weapon . | . . . Parts Attached 15 | 7 4 4 Power 2 | 1 1 . Engine 2 | 1 1 . Core . | . . . Reactor . | . . . Propulsion 3 | 2 1 . Treads . | . . . Leg 3 | 2 1 . Wheel . | . . . Hover . | . . . Flight . | . . . Utility 2 | 2 . . Device 1 | 1 . . Storage 1 | 1 . . Processor . | . . . Hackware . | . . . Protection . | . . . Artifact . | . . . Weapon 8 | 2 2 4 Energy Gun 4 | 2 . 2 Energy Cannon . | . . . Ballistic Gun . | . . . Ballistic Cannon . | . . . Launcher . | . . . Special Weapon 2 | . 1 1 Impact Weapon . | . . . Slashing Weapon 2 | . 1 1 Piercing Weapon . | . . . Special Melee Weapon . | . . . Unidentified Prototypes . | . . . Parts Lost 8 | . 2 6 Power 1 | . . 1 Propulsion 3 | . . 3 Utility . | . . . Weapon 4 | . 2 2 Highest Loss Streak 6 | . 2 6 To Critical Strikes . | . . . Average Backups 5 | 1 3 9 Power . | . . . Propulsion . | . . . Utility 2 | . 1 4 Weapon 1 | . . 2 Tool/Special . | . . . Unused Backups 9 | 1 . 8 Power 1 | . . 1 Propulsion 2 | . . 2 Utility 5 | . . 5 Weapon 1 | 1 . . Tool/Special . | . . . Average Slot Usage (%) 94 | . 93 96 Engine 11 | . 12 11 Leg 34 | . 35 34 Device 12 | . 12 12 Storage 12 | . 12 12 Energy Gun 10 | . 11 7 Special Weapon 6 | . 5 9 Slashing Weapon 3 | . 2 5 Peak Build Rating 11 | 7 8 11 Average Rating 8 | 4 7 9 On Entrance 5 | . 7 8 Avg Prop Armor Cover (%) . | . . . Naked Turns . | . . . Heaviest Build 21 | 18 20 21 Greatest Support 30 | 20 30 30 Greatest Overweight (x) 1 | . . 1 Average Overweight (x) . | . . . Largest Inventory Capacity 10 | 10 10 10 Average Capacity 9 | 7 10 10 Most Carried 10 | 5 8 10 Average Carried 5 | 1 3 9 Final Capacity 10 | 10 10 10 Final Carried 9 | . 8 9 Class Distribution -------------------- 100% | Hacker-Mutant Dominant Class ---------------- Hacker-Mutant | -10/Materials Hacker-Mutant | -10/Subcaves Resources | -11 -10 -10 ----------- Run | Yrd Mat Sub Matter Collected 347 | 197 110 40 Remotely . | . . . Salvage Created 329 | . 210 119 Parts 20 | . 16 4 Haulers Intercepted . | . . . Recyclers Shooed . | . . . Parts Field Recycled . | . . . Retrieved Matter . | . . . Parts Self-Destructed . | . . . Prevented . | . . . Parts Restored . | . . . Kills | -11 -10 -10 ------- Run | Yrd Mat Sub Combat Hostiles Destroyed 10 | . 7 3 Melee 2 | . 1 1 Guns 7 | . 6 1 Classes Destroyed 5 | . 4 1 Builder 1 | . 1 . Watcher 1 | . 1 . Swarmer 4 | . 4 . Grunt 3 | . 3 . Subdweller 3 | . . 3 Best Kill Streak 3 | . 3 2 Combat Bots Only 3 | . 3 2 Max Kills in Single Turn 1 | . 1 1 Gunslinging . | . . . Exploded . | . . . Melee 1 | . 1 1 Uniques/NPCs Destroyed . | . . . Combat | -11 -10 -10 -------- Run | Yrd Mat Sub Hostile Shots Fired 112 | . 57 55 Missed 32 | . 16 16 Hits 80 | . 41 39 Projectile 80 | . 41 39 Critical Strikes 1 | . 1 . Damage Taken 890 | . 378 512 Core 261 | . 112 149 Absorbed by Shields . | . . . Ignored by Resistances 538 | . 235 303 Core Remaining (%) 100 | 100 . . Volleys Fired 69 | . 31 38 Largest 2 | . 2 2 Hottest 150 | . 80 150 Shots Fired 111 | . 45 66 Gun 76 | . 39 37 Cannon . | . . . Launcher . | . . . Special 35 | . 6 29 Kinetic . | . . . Thermal 35 | . 6 29 Explosive . | . . . Electromagnetic 76 | . 39 37 Robot Hit Streak 30 | . 16 30 Robot Miss Streak 1 | . 1 . Penetration Max . | . . . Secondary Targets . | . . . Shots Hit Robots 62 | . 33 29 Core Hits 23 | . 16 7 Critical Kills . | . . . Critical Parts Destroyed . | . . . Critical Strikes 1 | . 1 . Corrupt 1 | . 1 . Melee Attacks 28 | . 6 22 Impact . | . . . Slashing 28 | . 6 22 Piercing . | . . . Sneak Attacks 1 | . 1 . Combat Hostiles . | . . . Follow-up Attacks . | . . . Damage Inflicted 1128 | . 590 538 Guns 676 | . 420 256 Cannons . | . . . Explosions 28 | . 28 . Melee 236 | . 50 186 Ramming 88 | . 88 . Kinetic . | . . . Thermal 128 | . 32 96 Explosive . | . . . Electromagnetic 676 | . 420 256 Impact . | . . . Slashing 236 | . 50 186 Piercing . | . . . Highest Corruption . | . . . Average Corruption . | . . . Corruption Purged . | . . . Corruption Blocked . | . . . Overload Shots . | . . . Overflow Damage 1 | . 1 . Projectiles . | . . . Explosions 1 | . 1 . Melee . | . . . Knockbacks 2 | . 2 . Impact 2 | . 2 . Kinetic . | . . . Secondary . | . . . Self-Inflicted Damage 18 | . 18 . Shots 1 | . 1 . Rammed . | . . . Targets Rammed 41 | . 41 . Kicked 41 | . 41 . Crushed . | . . . Highest Temperature 96 | . 96 2 Average Temperature 36 | . 36 2 Received Heat Transfer 348 | . 276 72 Siege Activations . | . . . Martial Activations . | . . . Shielding Activations . | . . . Robots Disrupted . | . . . Combat Hostiles . | . . . Robots Corrupted 1 | . . 1 Combat Hostiles 1 | . . 1 Parts Fried 5 | . 1 4 Impact Corruptions . | . . . Robots Melted . | . . . Combat Hostiles . | . . . Parts Melted . | . . . Heat Transferred 275 | . 75 200 Parts Sabotaged . | . . . Parts Stolen . | . . . Parts Stripped . | . . . Power Chain Reactions 1 | . 1 . Alert | -11 -10 -10 ------- Run | Yrd Mat Sub Maximum Alert Level . | . . . Low Security (%) 100 | 100 100 . Level 1 . | . . . Level 2 . | . . . Level 3 . | . . . Level 4 . | . . . Level 5 . | . . . High Security . | . . . Max Security . | . . . Peak Influence 55 | . 55 . Initial . | . . . Average 5 | . 5 . Influence Increases 202 | . 202 . Destroy 0b10 Robot/C 140 | . 140 . Destroy 0b10 Robot/NC 10 | . 10 . Destroy Leader 42 | . 42 . Successful Hack 7 | . 7 . Destroy Structure 3 | . 3 . Influence Decreases 202 | . 202 . Time Decay 189 | . 189 . Lost Part 13 | . 13 . Squads Dispatched 1 | . 1 . Investigation 1 | . 1 . Extermination . | . . . Reinforcement . | . . . Assault . | . . . Garrison . | . . . Intercept . | . . . Searches Triggered . | . . . Construction Impeded . | . . . Haulers Reinforced . | . . . Active Scanning Responses . | . . . Cargo Convoy Interrupts . | . . . Stealth | -11 -10 -10 --------- Run | Yrd Mat Sub Distress Signals 1 | . 1 . Communications Jammed . | . . . Distress Signals . | . . . Times Spotted 22 | . 18 4 Peak Tracking Total 5 | . 5 2 Tactical Retreats . | . . . Traps | -11 -10 -10 ------- Run | Yrd Mat Sub Traps Triggered 1 | . 1 . Indirectly . | . . . Trap Hack Attempts . | . . . Triggered . | . . . Disarmed 4 | . 4 . Reprogrammed . | . . . Reused . | . . . Traps Extracted . | . . . Installed . | . . . Triggered . | . . . Machines | -11 -10 -10 ---------- Run | Yrd Mat Sub Machines Disabled . | . . . Max in Single Turn . | . . . Machines Repaired . | . . . Machines Dismantled . | . . . Machines Sabotaged . | . . . Overloaded Fab Kills . | . . . Hacking | -11 -10 -10 --------- Run | Yrd Mat Sub Machines Accessed 7 | . 7 . Terminals 6 | . 6 . Fabricators . | . . . Repair Stations . | . . . Recycling Units 1 | . 1 . Scanalyzers . | . . . Garrison Access . | . . . Total Hacks 19 | . 19 . Successful 12 | . 12 . Failed 7 | . 7 . Catastrophic 1 | . 1 . Database Lockouts . | . . . Manual 4 | . 4 . Terminals 18 | . 18 . Fabricators . | . . . Repair Stations . | . . . Recycling Units 1 | . 1 . Scanalyzers . | . . . Garrison Access . | . . . Terminal Hacks 11 | . 11 . Prototype ID Bank 1 | . 1 . Branch Access Points 1 | . 1 . Emergency Access Points 3 | . 3 . Locate Traps 1 | . 1 . Disarm Traps 1 | . 1 . Zone Layout 4 | . 4 . Fabricator Hacks . | . . . Repair Station Hacks . | . . . Recycling Unit Hacks 1 | . 1 . Report Inventory 1 | . 1 . Scanalyzer . | . . . Garrison Access Hacks . | . . . Unauthorized Hacks . | . . . Terminals . | . . . Fabricators . | . . . Repair Stations . | . . . Recycling Units . | . . . Scanalyzers . | . . . Garrison Access . | . . . Data Cores Recovered . | . . . Used . | . . . Hacking Detections 6 | . 6 . Full Trace Events 2 | . 2 . Feedback Events . | . . . Feedback Blocked . | . . . Robot Schematics Acquired . | . . . Robots Built . | . . . Authchips . | . . . Time . | . . . Total Robot Build Rating . | . . . Part Schematics Acquired . | . . . Parts Built . | . . . Authchips . | . . . Time . | . . . Total Part Build Rating . | . . . Part Studies Acquired . | . . . Parts Repaired . | . . . Time . | . . . Parts Recycled . | . . . Recycled Matter . | . . . Retrieved Matter . | . . . Retrieved Components . | . . . Parts Scanalyzed . | . . . Part Schematics Acquired . | . . . Parts Damaged . | . . . Bothacking | -11 -10 -10 ------------ Run | Yrd Mat Sub Used RIF Installer . | . . . Robots Hacked . | . . . Non-combat . | . . . Combat . | . . . Robot Hacks Applied . | . . . Relay Couplers Released . | . . . Fabnet Peak Effective % . | . . . Robots Rewired . | . . . Allies Hacked . | . . . Hacks Repelled . | . . . Allies | -11 -10 -10 -------- Run | Yrd Mat Sub Total Allies . | . . . Largest Group . | . . . Highest-Rated Group . | . . . Highest-Rated Ally . | . . . Total Orders . | . . . Ally Attacks . | . . . Total Damage . | . . . Kills . | . . . Allies Corrupted . | . . . Allies Melted . | . . . Intel | -11 -10 -10 ------- Run | Yrd Mat Sub Active Infowar (turns) 1471 | 34 907 530 Terrain 1471 | 34 907 530 Robot Analysis Total . | . . . Derelict Logs Recovered . | . . . Drone Launches . | . . . Drone Recoveries . | . . . Exploration | -11 -10 -10 ------------- Run | Yrd Mat Sub Turns Passed 1491 | 54 907 530 Spaces Moved 899 | 46 621 232 Core 25 | 25 . . Treads . | . . . Legs 874 | 21 621 232 Wheels . | . . . Hover . | . . . Flight . | . . . Fastest Speed 50 | 50 120 120 Average Speed 118 | 81 120 121 Slowest Speed 190 | 120 120 190 Overloaded Moves . | . . . Propulsion Burnouts . | . . . Robots Hopped . | . . . Potential Cave-ins . | . . . Cave-ins Triggered . | . . . Exploration Rate (%) 35 | 4 89 13 Regions Visited 2 Branch Regions 1 Pre-discovered Areas . | . . . Known Exits Taken 2 | 1 1 . Unknown Exits Taken . | . . . Scrap Searched . | . . . Spaces Dug . | . . . Terrain Destroyed 3 | . 3 . Melee . | . . . Projectile . | . . . AOE 3 | . 3 . Terrain Rammed . | . . . Walls Destroyed . | . . . Machines Disabled . | . . . Actions | -11 -10 -10 --------- Run | Yrd Mat Sub Total 1089 | 62 716 311 Wait 10 | 3 1 6 Move 897 | 45 620 232 Hop . | . . . Pick Up 22 | 6 12 4 Fast Attach 2 | 2 . . Attach 9 | 5 3 1 Detach . | . . . Swap 6 | . 1 5 Drop 5 | 1 1 3 Fire 69 | . 31 38 Melee 28 | . 6 22 Ram . | . . . Kick 41 | . 41 . Crush . | . . . Escape Stasis . | . . . Rewire . | . . . Trap . | . . . Miscellaneous . | . . . Route ------- -11/Scrapyard -10/Materials (discovered 6 exits: *Mat x3 / *Min x2 / *Sub) -10/Subcaves History --------- Turn | Location | Event 5 | -11/Scrapyard | Identified exit to Materials 5 | -11/Scrapyard | Discovered exit to Materials (range 15) 55 | -11/Scrapyard | Entered Materials 55 | -10/Materials | Evolved 1 slot: Propulsion x1 304 | -10/Materials | Build established: Hacker-Mutant 389 | -10/Materials | Identified exit to Materials 389 | -10/Materials | Discovered exit to Materials (range 9) 547 | -10/Materials | Discovered exit to Materials (range 16) 708 | -10/Materials | Identified exit to Mines 778 | -10/Materials | Discovered exit to Materials (range 20) 958 | -10/Materials | Identified exit to Subcaves 958 | -10/Materials | Discovered exit to Subcaves (range 3) 962 | -10/Materials | Entered Subcaves 963 | -10/Subcaves | Shifting Twisted Machinery released Riot Gun 963 | -10/Subcaves | Approached by a straggling Scientist 966 | -10/Subcaves | Shifting Twisted Machinery released Sub. Power Source 1447 | -10/Subcaves | Core integrity fell below 50% 1467 | -10/Subcaves | Core integrity fell below 20% 1492 | -10/Subcaves | Destroyed by PM-QBC(R) with Subdweller Machine Gun Last Messages --------------- 01188_ Acquired 40 matter. 01191_ Subatomizers dissect the Sub. Laser. 01191_ Dropped Mining Claw. 01192_ Acquired Scrap Shield. GE-S5U(c): "I think it's somewhere southwest of here" 01328_ 0V-QO4(u) builds Twisted Machinery. GE-S5U(c): "I think it's somewhere southwest of here" 01440_ Aluminum Leg destroyed. 01445_ Riot Gun destroyed. 01448_ Aluminum Leg destroyed. 01468_ Mining Laser destroyed. 01470_ FS-3C6(R) destroyed. GE-S5U(c): "I think it's somewhere southwest of here" 01481_ PM-QBC(R) affixes Scrap Shield Fragment to Scrap Shield. 01482_ Aluminum Leg destroyed. 01486_ Ion Engine destroyed. Map ----- +----------------------------------------------------+ | ?????????????????????????????????????????????????? | | ?????????????????????????????????????????????????? | | ?????????????????????????????????????????????????? | | ?????????????????????????????????????????????????? | | ?????????????????????????????????????????????????? | | ?????????????????????????????????????????????????? | | ????????????????#?????????#??????????????????????? | | ????????????????????#????#?#?????????????????????? | | ???????????#??#??????????????????????????????????? | | ????????????????????#????????????????????????????? | | ????????????#?????????####???????????????????????? | | ??????????????????????# ##??????????????????????? | | ?#####??##????????????#"""##?????##?##???????????? | | ## ####?????????????# ""#?#### # ## ?????????? | | # ##??????????### "" ### ??????????? | | ###????##### "" #???????????????? | | ###### # ##?????#?????????? | | ##""""" ###### #???????????????? | | "" " ###????## ##????? ?????????? | | "" ##" ##??#?#?## ##???????????????? | | ### #??#???# #????????????????? | | ##?## """""" #####?#?# ##??? ??????????? | | ## #???####""" #?# ###?## #?#?????????????? | | ### #???#?##### ## ##?## ##???#???????????? | | #?# ???????? ### R### #????????????????? | | ##?## ??#?### ## @ c ###????#?????????? | | #???## ?#??# #??????????????? | | ??#??? ???## #### #?????????? | | #????? ????####??## ##?????????? | | ???? ? ????#??????## # #??????????? | | ?????? ##??????#?????### ## ????????? | | ???? ? ##??????#????????# ##? ???????? | | ?????? ??????????#??????# ##???### ???????? | | ????? ?????????#?????????#####???????? ??????? | | ??"???? ?????????????????#??#?#??????????????????? | | ???????????????????????????????##????????????????? | | ???????????????????????????#?????????????????????? | | ?????????????????????????????????????????????????? | | ?????????????????????#???????????????????????????? | | ????????????????????????#??##????????????????????? | | "????????????????????????????????????????????????? | | ?????????????????????????????????????????????????? | | ?????????????????????????????????????????????????? | | ?????????????????????????????????????????????????? | | ?????????????????????????????????????????????????? | | ?????????????????????????????????????????????????? | | ?????????????????????????????????????????????????? | | ?????????????????????????????????????????????????? | | #????????????????????????????????????????????????? | | ?????????????????????????????????????????????????? | +----------------------------------------------------+ Best States ------------- Heat Dissipation 25 Energy Generation 10 Energy Capacity 250 Matter Stores 300 Matter Capacity 300 Sight Range 16 Terrain Scan Range 14 Terrain Scan Density 10 Resistance: KI 35 Resistance: TH 35 Resistance: EX 35 Resistance: EM 35 Resistance: I 35 Resistance: S 35 Resistance: P 35 Evasion (%) 55 Offensive Hacking 20 Item Schematics ----------------- None Robot Schematics ------------------ None Fabricated ------------ Nothing Repaired ---------- Nothing Studied --------- None Alien Tech Used ----------------- None Achievements -------------- None Challenges ------------ None Game ------ Seed ActiveCombatCleaver Manual? 0 Play Time 00:10:37 Cumulative 69.3 hours Start 2025.11.11 @ 11:01:41 End 2025.11.11 @ 11:11:54 Sessions 1 Manual Loads 0 Difficulty Explorer Special Mode None Game No. 56 Rogue 0 Adventurer 0 Explorer 56 Win Type - Total 0 Types 0/0/0/0/0/0/0/0/0/0 Lore% 40 Gallery% 50 Achievement% 38 Wizard Run 0 Options --------- Layout 1 ASCII 0 Keyboard 0 Movement Mouse Keybinds 0 Fullscreen 1 Font 24/Smallcaps Map View 50x35 Zoom Use 0% Tactical HUD 1 Map Filters NONE Filters NONE Steam 1 RUN: f28b9d6d-a6b8-49f6-b249-72f23d3b6087